fUSD/lending_fUSD_20240613
["ID","MTS","AMOUNT","RATE_DAILY","PERIOD"]
[329406277,1718320394059,-500.0,0.00026027,3]
[329406278,1718320394073,-500.0,0.00026027,3]
[329406279,1718320394104,-500.0,0.00026027,3]
[329406280,1718320394118,-1971.12,0.00026027,3]
[329406281,1718320394132,-500.0,0.00026027,3]
[329406282,1718320394164,-743.44,0.00026027,3]
[329406283,1718320394185,-165.12712666,0.00026027,3]
[329406284,1718320394199,-610.48,0.00026027,3]
[329406285,1718320394228,-629.29132478,0.00026027,3]
[329406286,1718320394255,-275.82181691,0.00026027,3]
[329406287,1718320394280,-661.13,0.00026027,3]
[329406288,1718320394301,-500.0,0.00026027,3]
[329406289,1718320394317,-500.0,0.00026027,3]
[329406290,1718320394347,-963.44,0.00026027,3]
[329406291,1718320394374,-533.87,0.00026027,3]
[329406292,1718320394398,-1022.84,0.00026027,3]
[329406293,1718320394411,-1126.87,0.00026027,3]
[329406294,1718320394468,-821.07,0.00026027,3]
[329406295,1718320394480,-160.58162363,0.00026027,3]
[329406296,1718320394492,-2267.4,0.00026027,3]
[329406297,1718320394538,-500.0,0.00026027,3]
[329406298,1718320394564,-500.0,0.00026027,3]
[329406299,1718320394577,-2310.9,0.00026027,3]
[329406300,1718320394597,-515.27914568,0.00026027,3]
[329406301,1718320394610,-500.0,0.00026027,3]
[329406302,1718320394621,-3363.13,0.00026027,3]
[329406303,1718320394635,-500.0,0.00026027,3]
[329406304,1718320394647,-500.0,0.00026027,3]
[329406305,1718320394665,-1220.15,0.00026027,3]
[329406306,1718320394686,-293.13556828,0.00026027,3]
[329406307,1718320394699,-2361.0,0.00026027,3]
[329406308,1718320394726,-500.0,0.00026027,3]
[329406309,1718320394741,-500.0,0.00026027,3]
[329406310,1718320394756,-500.0,0.00026027,3]
[329406311,1718320394777,-500.0,0.00026027,3]
[329406312,1718320394796,-500.0,0.00026027,3]
[329406313,1718320394843,-500.0,0.00026027,3]
[329406314,1718320394894,-845.89,0.00026027,3]
[329406315,1718320394926,-500.0,0.00026027,3]
[329406316,1718320394945,-444.38583893,0.00026027,3]
[329406317,1718320394964,-1860.08,0.00026027,3]
[329406318,1718320394992,-500.0,0.00026027,3]
[329406319,1718320395012,-621.59,0.00026027,3]
[329406320,1718320395038,-620.18,0.00026027,3]
[329406321,1718320395054,-500.0,0.00026027,3]
[329406322,1718320395076,-1133.15,0.00026027,3]
[329406323,1718320395107,-500.0,0.00026027,3]
[329406324,1718320395120,-609.83,0.00026027,3]
[329406325,1718320395144,-500.0,0.00026027,3]
[329406326,1718320395440,-500.0,0.00026027,3]
[329406327,1718320395500,-11319.94,0.00026027,3]
[329406328,1718320395513,-500.0,0.00026027,3]
[329406329,1718320395524,-1255.47,0.00026027,3]
[329406330,1718320395539,-500.0,0.00026027,3]
[329406331,1718320395554,-341.31537406,0.00026027,3]
[329406332,1718320395578,-712.06,0.00026027,3]
[329406333,1718320395591,-500.0,0.00026027,3]
[329406334,1718320395611,-542.32,0.00026027,3]
[329406335,1718320395628,-1517.96,0.00026027,3]
[329406336,1718320395640,-646.26,0.00026027,3]
[329406337,1718320395682,-500.0,0.00026027,3]
[329406338,1718320395696,-500.0,0.00026027,3]
[329406339,1718320395715,-500.0,0.00026027,3]
[329406340,1718320395727,-544.76507891,0.00026027,3]
[329406341,1718320395747,-1612.23,0.00026027,3]
[329406342,1718320395772,-500.0,0.00026027,3]
[329406343,1718320395783,-1147.19,0.00026027,3]
[329406344,1718320395806,-3424.63,0.00026027,3]
[329406345,1718320395841,-500.0,0.00026027,3]
[329406346,1718320395855,-1385.38,0.00026027,3]
[329406347,1718320395882,-290.57,0.00026027,3]
[329406348,1718320395898,-8166.43,0.00026027,3]
[329406349,1718320395910,-1946.85,0.00026027,3]
[329406350,1718320395931,-500.0,0.00026027,3]
[329406351,1718320395945,-1453.22,0.00026027,3]
[329406352,1718320395974,-500.0,0.00026027,3]
[329406353,1718320395988,-504.86,0.00026027,3]
[329406354,1718320396000,-151.0,0.00026027,7]
[329406355,1718320396051,-468.73515063,0.00026027,3]
[329406356,1718320396066,-522.90055921,0.00026027,3]
[329406357,1718320396092,-1070.05,0.00026027,3]
[329406358,1718320396111,-1582.75,0.00026027,3]
[329406359,1718320396134,-1624.17,0.00026027,3]
[329406360,1718320396147,-500.0,0.00026027,3]
[329406361,1718320396159,-715.19,0.00026027,3]
[329406362,1718320396176,-2369.41,0.00026027,3]
[329406363,1718320396188,-500.0,0.00026027,3]
[329406364,1718320396205,-80.06799923,0.00026027,3]
[329406365,1718320396485,-396.05309653,0.00026027,3]
[329406366,1718320396505,-379.9422459,0.00026027,3]
[329406367,1718320396849,-500.0,0.00024109,2]
[329406368,1718320396862,-93.49430624,0.00024383,2]
[329406369,1718320396875,-406.50569376,0.00024383,2]
[329406370,1718320396889,-151.0,0.00024657,7]
[329406371,1718320396909,-500.0,0.00024657,2]
[329406372,1718320396928,-141.17430624,0.00024931,7]
[329406373,1718320396949,-9.82569376,0.00024931,7]
[329406374,1718320396963,-500.0,0.00024931,3]
[329406375,1718320396974,-151.0,0.00025205,7]
[329406376,1718320396990,-144.10657451,0.00025205,7]
[329406377,1718320397024,-6.89342549,0.00025205,7]
[329406378,1718320397088,-569.12227706,0.00026027,3]
[329406379,1718320397120,-2829.76438128,0.00026027,3]
[329406380,1718320397136,-214.41402642,0.00026027,3]
[329406381,1718320397173,-285.58597358,0.00026027,3]
[329406382,1718320397193,-151.0,0.00026027,7]
[329406383,1718320397206,-500.0,0.00026027,3]
[329406384,1718320397236,-596.24636283,0.00026027,3]
[329406385,1718320397264,-458.01363717,0.00026027,3]
[329406386,1718320397300,-355.7743561,0.00026027,3]
[329406387,1718320397321,-497.9156439,0.00026027,3]
[329406388,1718320397336,-500.0,0.00026027,3]
[329406389,1718320397372,-1054.92370039,0.00026027,3]
[329406390,1718320397388,-480.2333528,0.00026027,3]
[329406391,1718320397415,-860.23294681,0.00026027,3]
[329406392,1718320397427,-4096.83,0.00026027,3]
[329406393,1718320397452,-500.0,0.00026027,3]
[329406394,1718320397464,-2151.91,0.00026027,3]
[329406395,1718320397478,-6315.94,0.00026027,3]
[329406396,1718320397504,-1587.47,0.00026027,3]
[329406397,1718320397521,-241.71174626,0.00026027,3]
[329406398,1718320397533,-500.0,0.00026027,3]
[329406399,1718320397544,-2319.76,0.00026027,3]
[329406400,1718320397554,-10030.19,0.00026027,3]
[329406401,1718320397568,-500.0,0.00026027,3]
[329406402,1718320397589,-500.0,0.00026027,3]
[329406403,1718320397614,-500.0,0.00026027,3]
[329406404,1718320397653,-702.19,0.00026027,3]
[329406405,1718320397677,-2226.25,0.00026027,3]
[329406406,1718320397706,-568.42,0.00026027,3]
[329406407,1718320397718,-710.66,0.00026027,3]
[329406408,1718320397749,-575.97974026,0.00026027,3]
[329406409,1718320397788,-500.0,0.00026027,3]
[329406410,1718320397816,-374.56992979,0.00026027,3]
[329406411,1718320397855,-1702.81,0.00026027,3]
[329406412,1718320397871,-1103.72,0.00026027,3]
[329406413,1718320397889,-8704.11,0.00026027,3]
[329406414,1718320397907,-3569.13,0.00026027,3]
[329406415,1718320397920,-500.0,0.00026027,3]
[329406416,1718320397940,-1464.04,0.00026027,3]
[329406417,1718320397953,-500.0,0.00026027,3]
[329406418,1718320397969,-1252.91,0.00026027,3]
[329406419,1718320397982,-3534.62,0.00026027,3]
[329406420,1718320398000,-897.26,0.00026027,3]
[329406421,1718320398044,-500.0,0.00026027,3]
[329406422,1718320398063,-1716.4,0.00026027,3]
[329406423,1718320398096,-551.79,0.00026027,3]
[329406424,1718320398112,-1940.51,0.00026027,3]
[329406425,1718320398135,-931.95,0.00026027,3]
[329406426,1718320398172,-1002.85,0.00026027,3]
[329406427,1718320398185,-6328.79,0.00026027,3]
[329406428,1718320398221,-874.49,0.00026027,3]
[329406429,1718320398246,-5552.19,0.00026027,3]
[329406430,1718320398259,-500.0,0.00026027,3]
[329406431,1718320398271,-500.0,0.00026027,3]
[329406432,1718320398291,-1760.43,0.00026027,3]
[329406433,1718320398320,-548.59,0.00026027,3]
[329406434,1718320398344,-885.2,0.00026027,3]
[329406435,1718320398376,-20754.34,0.00026027,3]
[329406436,1718320398393,-500.0,0.00026027,3]
[329406437,1718320398405,-2363.03,0.00026027,3]
[329406438,1718320398425,-500.0,0.00026027,3]
[329406439,1718320398436,-2574.46,0.00026027,3]
[329406440,1718320398450,-9692.4,0.00026027,3]
[329406441,1718320398462,-4255.28,0.00026027,3]
[329406442,1718320398474,-515.56,0.00026027,3]
[329406443,1718320398500,-4020.29,0.00026027,3]
[329406444,1718320398520,-1598.32,0.00026027,3]
[329406445,1718320398531,-5697.5961392,0.00026027,3]
[329406446,1718320403353,-499.5626,0.000139,2]
[329406447,1718320403366,-6850.93179153,0.00024009,2]
[329406448,1718320403405,-3149.06820847,0.00024009,2]
[329406449,1718320403417,-500.0,0.00024109,2]
[329406450,1718320403427,-878.76,0.00024109,2]
[329406451,1718320403440,-500.0,0.00024109,2]
[329406452,1718320403471,-500.0,0.00024109,2]
[329406453,1718320403486,-500.0,0.00024109,2]
[329406454,1718320403498,-500.0,0.00024109,2]
[329406455,1718320403520,-500.0,0.00024109,2]
[329406456,1718320403533,-500.0,0.00024109,2]
[329406457,1718320403552,-500.0,0.00024109,2]
[329406458,1718320403564,-500.0,0.00024109,2]
[329406459,1718320403589,-500.0,0.00024383,2]
[329406460,1718320403602,-500.0,0.00024383,2]
[329406461,1718320403616,-878.76,0.00024383,2]
[329406462,1718320403630,-500.0,0.00024383,2]
[329406463,1718320403645,-500.0,0.00024383,2]
[329406464,1718320403688,-500.0,0.00024383,2]
[329406465,1718320403700,-500.0,0.00024383,2]
[329406466,1718320403752,-500.0,0.00024383,2]
[329406467,1718320403771,-500.0,0.00024383,2]
[329406468,1718320403793,-500.0,0.00024383,2]
[329406469,1718320403820,-500.0,0.00024383,2]
[329406470,1718320403856,-500.0,0.00024657,2]
[329406471,1718320403877,-266.22,0.00024657,2]
[329406472,1718320403892,-878.76,0.00024657,2]
[329406473,1718320403911,-500.0,0.00024657,2]
[329406474,1718320403925,-500.0,0.00024657,2]
[329406475,1718320403953,-636.34,0.00024657,2]
[329406476,1718320403964,-500.0,0.00024657,2]
[329406477,1718320403980,-500.0,0.00024657,2]
[329406478,1718320403989,-500.0,0.00024931,3]
[329406479,1718320404020,-651.7217099,0.00024931,3]
[329406480,1718320404068,-227.0382901,0.00024931,3]
[329406481,1718320404124,-50.74150176,0.00024931,3]
[329406482,1718320404175,-0.01392775,0.00024931,3]
[329406483,1718320404212,-449.24457049,0.00024931,3]
[329406484,1718320404231,-212.63103835,0.00024931,3]
[329406485,1718320404247,-500.0,0.00024931,3]
[329406486,1718320404263,-500.0,0.00024931,3]
[329406487,1718320404288,-500.0,0.00025205,3]
[329406488,1718320404365,-500.0,0.00025205,3]
[329406489,1718320404393,-878.76,0.00025205,3]
[329406490,1718320404406,-500.0,0.00025205,3]
[329406491,1718320404449,-172.83630044,0.00025205,3]
[329406492,1718320404483,-327.16369956,0.00025205,3]
[329406493,1718320404514,-55.10848692,0.00025479,3]
[329406494,1718320404621,-500.0,0.00025205,3]
[329406495,1718320404638,-444.89151308,0.00025479,3]
[329406496,1718320404665,-151.0,0.00025479,7]
[329406497,1718320404704,-500.0,0.00025479,3]
[329406498,1718320404722,-393.58300835,0.00025479,3]
[329406499,1718320405195,-1000.0,0.00024009,2]
[329406500,1718320405211,-485.17699165,0.00025479,3]
[329406501,1718320405224,-454.38094326,0.00025479,3]
[329406502,1718320405256,-192.93518567,0.00025479,3]
[329406503,1718320405272,-278.88464835,0.00025479,3]
[329406504,1718320405285,-28.18016598,0.00025479,3]
[329406505,1718320405298,-500.0,0.00025479,3]
[329406506,1718320405310,-500.0,0.00025753,3]
[329406507,1718320405338,-151.0,0.00025753,7]
[329406508,1718320405358,-502.72,0.00025753,3]
[329406509,1718320405370,-878.76,0.00025753,3]
[329406510,1718320405393,-500.0,0.00025753,3]
[329406511,1718320405420,-500.0,0.00025753,3]
[329406512,1718320405443,-10425.0838608,0.00026027,3]
[329406513,1718320405454,-9860.84,0.00026027,3]
[329406514,1718320405476,-3348.04,0.00026027,3]
[329406515,1718320405490,-500.0,0.00026027,3]
[329406516,1718320405504,-500.0,0.00026027,3]
[329406517,1718320405525,-500.0,0.00026027,3]
[329406518,1718320405545,-1512.21,0.00026027,3]
[329406519,1718320405579,-1381.13,0.00026027,3]
[329406520,1718320405595,-500.0,0.00026027,3]
[329406521,1718320405608,-1121.88,0.00026027,3]
[329406522,1718320405640,-2078.81,0.00026027,3]
[329406523,1718320405652,-500.0,0.00026027,3]
[329406524,1718320405664,-490.11755403,0.00026027,3]
[329406525,1718320405680,-2882.9,0.00026027,3]
[329406526,1718320405693,-500.0,0.00026027,3]
[329406527,1718320405752,-500.0,0.00026027,3]
[329406528,1718320405776,-500.0,0.00026027,3]
[329406529,1718320405814,-500.0,0.00026027,3]
[329406530,1718320405836,-768.74,0.00026027,3]
[329406531,1718320405852,-1580.73,0.00026027,3]
[329406532,1718320405868,-500.0,0.00026027,3]
[329406533,1718320405904,-2469.92,0.00026027,3]
[329406534,1718320405917,-500.0,0.00026027,3]
[329406535,1718320405940,-500.0,0.00026027,3]
[329406536,1718320405956,-1255.6,0.00026027,3]
[329406537,1718320405973,-500.0,0.00026027,3]
[329406538,1718320405984,-1134.0,0.00026027,3]
[329406539,1718320405994,-511.63,0.00026027,3]
[329406540,1718320406011,-1296.73,0.00026027,3]
[329406541,1718320406034,-500.0,0.00026027,3]
[329406542,1718320406080,-3231.34,0.00026027,3]
[329406543,1718320406095,-1495.31,0.00026027,3]
[329406544,1718320406111,-500.0,0.00026027,3]
[329406545,1718320406123,-2669.02,0.00026027,3]
[329406546,1718320406146,-2483.37,0.00026027,3]
[329406547,1718320406178,-500.0,0.00026027,3]
[329406548,1718320406196,-680.59,0.00026027,3]
[329406549,1718320406209,-862.24,0.00026027,3]
[329406550,1718320406232,-242.49216835,0.00026027,3]
[329406551,1718320406260,-500.0,0.00026027,3]
[329406552,1718320406278,-707.54,0.00026027,3]
[329406553,1718320406289,-500.0,0.00026027,3]
[329406554,1718320406316,-3060.94,0.00026027,3]
[329406555,1718320406332,-4842.93,0.00026027,3]
[329406556,1718320406350,-4672.3,0.00026027,3]
[329406557,1718320406382,-623.46,0.00026027,3]
[329406558,1718320406400,-529.12,0.00026027,3]
[329406559,1718320406431,-500.0,0.00026027,3]
[329406560,1718320406455,-905.4,0.00026027,3]
[329406561,1718320406473,-280.08,0.00026027,3]
[329406562,1718320406501,-1609.35,0.00026027,3]
[329406563,1718320406517,-803.92,0.00026027,3]
[329406564,1718320406534,-554.71,0.00026027,3]
[329406565,1718320406575,-19728.76,0.00026027,3]
[329406566,1718320406604,-523.16,0.00026027,3]
[329406567,1718320406629,-500.0,0.00026027,3]
[329406568,1718320406696,-1759.58,0.00026027,3]
[329406569,1718320406723,-500.0,0.00026027,3]
[329406570,1718320406760,-1665.85,0.00026027,3]
[329406571,1718320406772,-500.0,0.00026027,3]
[329406572,1718320406806,-500.0,0.00026027,3]
[329406573,1718320406841,-500.0,0.00026027,3]
[329406574,1718320406853,-151.0,0.00026027,7]
[329406575,1718320406877,-878.76,0.00026027,3]
[329406576,1718320406888,-500.0,0.00026027,3]
[329406577,1718320406929,-150.0,0.000261,4]
[329406578,1718320406943,-150.0,0.00026134,2]
[329406579,1718320406957,-183.75828318,0.00026163,2]
[329406580,1718320406971,-150.0,0.00026188,2]
[329406581,1718320407010,-150.0,0.00026192,2]
[329406582,1718320407032,-150.0,0.00026192,2]
[329406583,1718320407053,-150.0,0.00026199,2]
[329406584,1718320407087,-1296.36,0.000262,2]
[329406585,1718320407129,-150.0,0.00026203,2]
[329406586,1718320407140,-150.0,0.00026207,2]
[329406587,1718320407153,-150.0,0.0002621,2]
[329406588,1718320407167,-150.0,0.00026213,2]
[329406589,1718320407201,-150.0,0.00026217,2]
[329406590,1718320407223,-150.0,0.00026218,2]
[329406591,1718320407235,-150.0,0.00026218,2]
[329406592,1718320407246,-150.0,0.00026219,2]
[329406593,1718320407274,-150.0,0.00026221,2]
[329406594,1718320407286,-150.0,0.00026222,2]
[329406595,1718320407303,-150.0,0.00026223,2]
[329406596,1718320407315,-150.0,0.00026226,2]
[329406597,1718320407328,-150.0,0.00026233,2]
[329406598,1718320407354,-150.0,0.00026237,2]
[329406599,1718320407365,-150.0,0.00026242,2]
[329406600,1718320407383,-150.0,0.00026243,2]
[329406601,1718320407404,-150.0,0.00026244,2]
[329406602,1718320407419,-150.0,0.00026245,2]
[329406603,1718320407436,-150.0,0.00026246,2]
[329406604,1718320407453,-1500.0,0.00026254,2]
[329406605,1718320407479,-150.0,0.00026256,2]
[329406606,1718320407490,-150.0,0.00026257,2]
[329406607,1718320407506,-150.0,0.0002626,2]
[329406608,1718320407568,-150.0,0.00026265,2]
[329406609,1718320407632,-150.0,0.00026267,2]
[329406610,1718320407656,-150.0,0.00026268,2]
[329406611,1718320407710,-150.0,0.0002627,2]
[329406612,1718320407722,-150.0,0.00026271,2]
[329406613,1718320407734,-150.0,0.00026273,2]
[329406614,1718320407753,-150.0,0.00026274,2]
[329406615,1718320407782,-150.0,0.0002628,2]
[329406616,1718320407797,-150.0,0.00026284,2]
[329406617,1718320407817,-150.0,0.00026288,2]
[329406618,1718320407884,-150.0,0.0002629,2]
[329406619,1718320407895,-150.0,0.00026293,2]
[329406620,1718320407910,-150.0,0.00026295,2]
[329406621,1718320407949,-150.0,0.00026295,2]
[329406622,1718320407966,-150.0,0.00026297,2]
[329406623,1718320407986,-150.0,0.00026298,2]
[329406624,1718320408003,-150.0,0.00026298,2]
[329406625,1718320408044,-150.0,0.000263,2]
[329406626,1718320408064,-500.0,0.00026301,3]
[329406627,1718320408080,-500.0,0.00026301,3]
[329406628,1718320408116,-500.0,0.00026301,3]
[329406629,1718320408133,-500.0,0.00026301,3]
[329406630,1718320408160,-500.0,0.00026301,3]
[329406631,1718320408172,-500.0,0.00026301,3]
[329406632,1718320408207,-500.0,0.00026301,3]
[329406633,1718320408226,-500.0,0.00026301,3]
[329406634,1718320408245,-500.0,0.00026301,3]
[329406635,1718320408284,-286.18034746,0.00026301,3]
[329406636,1718320408299,-500.0,0.00026301,3]
[329406637,1718320408316,-500.0,0.00026301,3]
[329406638,1718320408331,-500.0,0.00026301,3]
[329406639,1718320408342,-527.06173021,0.00026301,3]
[329406640,1718320408354,-500.0,0.00026301,3]
[329406641,1718320408365,-500.0,0.00026301,3]
[329406642,1718320408379,-500.0,0.00026301,3]
[329406643,1718320408391,-500.0,0.00026301,3]
[329406644,1718320408408,-625.8,0.00026301,3]
[329406645,1718320408425,-401.13264284,0.00026301,3]
[329406646,1718320408448,-500.0,0.00026301,3]
[329406647,1718320408460,-402.40824071,0.00026301,3]
[329406648,1718320408487,-730.17,0.00026301,3]
[329406649,1718320408525,-500.0,0.00026301,3]
[329406650,1718320408547,-500.0,0.00026301,3]
[329406651,1718320408559,-500.0,0.00026301,3]
[329406652,1718320408569,-500.0,0.00026301,3]
[329406653,1718320408580,-546.14646967,0.00026301,3]
[329406654,1718320408594,-250.0,0.00026301,3]
[329406655,1718320408608,-500.0,0.00026301,3]
[329406656,1718320408619,-500.0,0.00026301,3]
[329406657,1718320408634,-514.95253092,0.00026301,3]
[329406658,1718320408648,-622.47,0.00026301,3]
[329406659,1718320408670,-884.26,0.00026301,3]
[329406660,1718320408696,-500.0,0.00026301,3]
[329406661,1718320408716,-500.0,0.00026301,3]
[329406662,1718320408738,-500.0,0.00026301,3]
[329406663,1718320408757,-500.0,0.00026301,3]
[329406664,1718320408778,-500.0,0.00026301,3]
[329406665,1718320408795,-1540.73,0.00026301,3]
[329406666,1718320408809,-500.0,0.00026301,3]
[329406667,1718320408819,-500.0,0.00026301,3]
[329406668,1718320408836,-500.0,0.00026301,3]
[329406669,1718320408847,-500.0,0.00026301,3]
[329406670,1718320408868,-500.0,0.00026301,3]
[329406671,1718320408898,-500.0,0.00026301,3]
[329406672,1718320408908,-500.0,0.00026301,3]
[329406673,1718320408918,-500.0,0.00026301,3]
[329406674,1718320408928,-500.0,0.00026301,3]
[329406675,1718320408960,-500.0,0.00026301,3]
[329406676,1718320408974,-500.0,0.00026301,3]
[329406677,1718320409012,-500.0,0.00026301,3]
[329406678,1718320409031,-500.0,0.00026301,3]
[329406679,1718320409041,-500.0,0.00026301,3]
[329406680,1718320409076,-624.17,0.00026301,3]
[329406681,1718320409089,-500.0,0.00026301,3]
[329406682,1718320409116,-500.0,0.00026301,3]
[329406683,1718320409128,-500.0,0.00026301,3]
[329406684,1718320409139,-500.0,0.00026301,3]
[329406685,1718320409168,-500.0,0.00026301,3]
[329406686,1718320409191,-160.45801829,0.00026301,3]
[329406687,1718320409202,-500.0,0.00026301,3]
[329406688,1718320409221,-500.0,0.00026301,3]
[329406689,1718320409251,-500.0,0.00026301,3]
[329406690,1718320409273,-500.0,0.00026301,3]
[329406691,1718320409305,-790.29,0.00026301,3]
[329406692,1718320409340,-500.0,0.00026301,3]
[329406693,1718320409380,-500.0,0.00026301,3]
[329406694,1718320409397,-500.0,0.00026301,3]
[329406695,1718320409410,-1178.26,0.00026301,3]
[329406696,1718320409421,-508.07,0.00026301,3]
[329406697,1718320409433,-500.0,0.00026301,3]
[329406698,1718320409444,-500.0,0.00026301,3]
[329406699,1718320409463,-691.85,0.00026301,3]
[329406700,1718320409491,-695.78,0.00026301,3]
[329406701,1718320409555,-500.0,0.00026301,3]
[329406702,1718320409571,-500.0,0.00026301,3]
[329406703,1718320409620,-500.0,0.00026301,3]
[329406704,1718320409669,-798.99,0.00026301,3]
[329406705,1718320409689,-500.0,0.00026301,3]
[329406706,1718320409716,-500.0,0.00026301,3]
[329406707,1718320409728,-500.0,0.00026301,3]
[329406708,1718320409784,-500.0,0.00026301,3]
[329406709,1718320409844,-500.0,0.00026301,3]
[329406710,1718320409884,-500.0,0.00026301,3]
[329406711,1718320409904,-500.0,0.00026301,3]
[329406712,1718320409924,-575.32,0.00026301,3]
[329406713,1718320409950,-500.0,0.00026301,3]
[329406714,1718320409972,-652.96,0.00026301,3]
[329406715,1718320410012,-500.0,0.00026301,3]
[329406716,1718320410036,-544.11,0.00026301,3]
[329406717,1718320410052,-500.0,0.00026301,3]
[329406718,1718320410064,-500.0,0.00026301,3]
[329406719,1718320410097,-500.0,0.00026301,3]
[329406720,1718320410128,-500.0,0.00026301,3]
[329406721,1718320410142,-500.0,0.00026301,3]
[329406722,1718320410170,-500.0,0.00026301,3]
[329406723,1718320410184,-751.21,0.00026301,3]
[329406724,1718320410198,-500.0,0.00026301,3]
[329406725,1718320410218,-500.0,0.00026301,3]
[329406726,1718320410233,-534.79,0.00026301,3]
[329406727,1718320410249,-500.0,0.00026301,3]
[329406728,1718320410280,-500.0,0.00026301,3]
[329406729,1718320410314,-500.0,0.00026301,3]
[329406730,1718320410333,-259.08647213,0.00026301,3]
[329406731,1718320410352,-500.0,0.00026301,3]
[329406732,1718320410376,-609.5,0.00026301,3]
[329406733,1718320410394,-500.0,0.00026301,3]
[329406734,1718320410405,-500.0,0.00026301,3]
[329406735,1718320410424,-500.0,0.00026301,3]
[329406736,1718320410456,-500.0,0.00026301,3]
[329406737,1718320410468,-500.0,0.00026301,3]
[329406738,1718320410480,-500.0,0.00026301,3]
[329406739,1718320410512,-685.8,0.00026301,3]
[329406740,1718320410525,-500.0,0.00026301,3]
[329406741,1718320410556,-500.0,0.00026301,3]
[329406742,1718320410577,-500.0,0.00026301,3]
[329406743,1718320410612,-736.81,0.00026301,3]
[329406744,1718320410627,-500.0,0.00026301,3]
[329406745,1718320410649,-500.0,0.00026301,3]
[329406746,1718320410666,-486.71814657,0.00026301,3]
[329406747,1718320410717,-530.01,0.00026301,3]
[329406748,1718320410731,-500.0,0.00026301,3]
[329406749,1718320410756,-500.0,0.00026301,3]
[329406750,1718320410788,-500.0,0.00026301,3]
[329406751,1718320410848,-170.78,0.00026301,3]
[329406752,1718320410863,-500.0,0.00026301,3]
[329406753,1718320410877,-500.0,0.00026301,3]
[329406754,1718320410889,-591.52,0.00026301,3]
[329406755,1718320410904,-500.0,0.00026301,3]
[329406756,1718320410921,-500.0,0.00026301,3]
[329406757,1718320410932,-500.0,0.00026301,3]
[329406758,1718320410944,-322.568571,0.00026301,7]
[329406759,1718320410989,-500.0,0.00026301,3]
[329406760,1718320411021,-500.0,0.00026301,3]
[329406761,1718320411047,-322.568565,0.00026301,7]
[329406762,1718320411068,-512.3,0.00026301,3]
[329406763,1718320411086,-500.0,0.00026301,3]
[329406764,1718320411108,-500.0,0.00026301,3]
[329406765,1718320411122,-500.0,0.00026301,3]
[329406766,1718320411135,-542.12,0.00026301,3]
[329406767,1718320411147,-500.0,0.00026301,3]
[329406768,1718320411158,-500.0,0.00026301,3]
[329406769,1718320411171,-817.96,0.00026301,3]
[329406770,1718320411183,-582.44,0.00026301,3]
[329406771,1718320411195,-628.96,0.00026301,3]
[329406772,1718320411206,-500.0,0.00026301,3]
[329406773,1718320411231,-1046.71,0.00026301,3]
[329406774,1718320411248,-500.0,0.00026301,3]
[329406775,1718320411261,-500.0,0.00026301,3]
[329406776,1718320411273,-500.0,0.00026301,3]